fUST/lending_fUST_20240204
["ID","MTS","AMOUNT","RATE_DAILY","PERIOD"]
[313241164,1707000640036,-8860.11,0.00027945,2]
[313241165,1707000640046,-1167.36,0.00027945,2]
[313241166,1707000640056,-96709.56304017,0.00028019,2]
[313241174,1707000641705,-21164.2868262,0.00028019,2]
[313241175,1707000641759,-2569.16642929,0.00028019,2]
[313241176,1707000641770,-1553.76671197,0.00028019,2]
[313241177,1707000641781,-1243.64942372,0.00028019,2]
[313241232,1707000646653,-155.01395126,0.00028018,4]
[313241233,1707000646663,-1773.89330732,0.00028019,2]
[313241235,1707000683006,19316.5011537,0.00021718,2]
[313241237,1707000854301,154.98450155,0.000176,2]
[313241240,1707000963825,155.01395126,0.000176,2]
[313241243,1707000979589,156.16838677,0.000176,2]
[313241244,1707001008502,250.0,0.00019329,2]
[313241246,1707001104583,241.065433,0.00019322,2]
[313241250,1707001118686,24552.5560438,0.00019321,2]
[313241253,1707001446346,7619.0523147,0.00019805,2]
[313241254,1707001542301,10000.0,0.0001994,2]
[313241255,1707001542323,14900.0,0.0001994,2]
[313241257,1707001550845,286.510636,0.00019994,2]
[313241262,1707001703308,335.5636504,0.00019217,2]
[313241263,1707001707333,155.00155002,0.00019121,2]
[313241264,1707001819530,380.4719705,0.0001979,2]
[313241300,1707001831744,-462.228,0.00020018,2]
[313241302,1707001831757,-1024.62951127,0.00020018,2]
[313241304,1707001831766,-155.01085076,0.00020018,2]
[313241306,1707001831776,-1997.51914833,0.00020019,2]
[313241308,1707001831785,-155.01085076,0.0002002,2]
[313241310,1707001831796,-523.15721576,0.0002002,2]
[313241312,1707001831805,-155.01085076,0.00020021,4]
[313241314,1707001831815,-155.01085076,0.00020021,2]
[313241316,1707001831825,-20913.35226665,0.00020021,2]
[313241318,1707001831834,-1163.4351394,0.00020034,2]
[313241321,1707001831845,-1534.73208007,0.00020079,2]
[313241323,1707001831854,-994.66450876,0.00020085,2]
[313241324,1707001831864,-156.60298543,0.00020117,2]
[313241326,1707001831873,-820.29034355,0.00021271,2]
[313241328,1707001831883,-295.1203131,0.00021516,2]
[313241330,1707001831893,-295.12031308,0.00021542,2]
[313241332,1707001831902,-295.12031308,0.00021567,2]
[313241334,1707001831912,-295.12031308,0.00021593,2]
[313241336,1707001831922,-5016.11,0.00021605,3]
[313241338,1707001831931,-9565.39,0.00021605,3]
[313241339,1707001831940,-7971.16,0.00021605,3]
[313241340,1707001831950,-6642.63,0.00021605,3]
[313241341,1707001831960,-54026.36215001,0.00021615,2]
[313241355,1707001837811,-1981.36617259,0.00020017,2]
[313241356,1707001837866,-1511.36492229,0.00020017,2]
[313241357,1707001837876,-175.55375997,0.00020017,2]
[313241358,1707001837885,-155.01085076,0.00020017,2]
[313241359,1707001837894,-27520.09551723,0.00021615,2]
[313241360,1707001837903,-387.72681886,0.00021616,2]
[313241361,1707001837912,-295.17761987,0.00021618,2]
[313241362,1707001837921,-295.12031308,0.00021618,2]
[313241363,1707001837930,-277.17028051,0.00021716,2]
[313241364,1707001837939,-2182.78241306,0.00021716,2]
[313241365,1707001837947,-16633.33239333,0.00021716,2]
[313241366,1707001837956,-328.54653112,0.00021716,2]
[313241367,1707001837965,-657.42821873,0.00021716,2]
[313241368,1707001837976,-160.12041175,0.00021716,2]
[313241369,1707001837987,-395.09966563,0.00021716,2]
[313241370,1707001837996,-155.43474841,0.00021716,2]
[313241371,1707001838005,-187.25962045,0.00021716,2]
[313241372,1707001838014,-293.58712786,0.00021716,2]
[313241373,1707001838023,-259.45212372,0.00021716,2]
[313241374,1707001838032,-275.94698994,0.00021716,2]
[313241375,1707001838043,-2088.92315681,0.00021716,2]
[313241376,1707001838053,-639.85213328,0.00021716,2]
[313241377,1707001838064,-155.0364516,0.00021716,2]
[313241378,1707001838073,-212.4169632,0.00021716,2]
[313241379,1707001838083,-1432.82494325,0.00021716,2]
[313241380,1707001838096,-1017.12321481,0.00021716,2]
[313241381,1707001838106,-248.22704821,0.00021717,2]
[313241382,1707001838117,-2713.33051082,0.00021717,5]
[313241383,1707001838128,-17571.92568651,0.00021717,2]
[313241384,1707001838138,-269.66920406,0.00021717,2]
[313241385,1707001838148,-500.0,0.00021717,2]
[313241386,1707001838158,-500.0,0.00021717,2]
[313241387,1707001838167,-500.0,0.00021717,2]
[313241388,1707001838177,-500.0,0.00021717,2]
[313241389,1707001838188,-500.0,0.00021717,2]
[313241390,1707001838197,-500.0,0.00021717,2]
[313241391,1707001838206,-308.55436073,0.00021717,2]
[313241392,1707001838215,-496.20316018,0.00021717,2]
[313241393,1707001838224,-451.08152833,0.00021717,2]
[313241394,1707001838233,-500.0,0.00021717,2]
[313241395,1707001838243,-471.39286736,0.00021718,2]
[313241396,1707001838254,-11551.29671064,0.00021718,2]
[313241397,1707001838266,-1984.01179553,0.00021718,2]
[313241398,1707001838289,-7050.24,0.00021718,2]
[313241399,1707001838304,-12094.96389273,0.00021718,2]
[313241400,1707001838355,-230592.58999815,0.00021718,2]
[313241401,1707001838364,-300.0,0.00021718,2]
[313241402,1707001838374,-166.666666,0.00021918,2]
[313241403,1707001838383,-3977.44618093,0.00022,2]
[313241404,1707001838393,-200.0,0.00022091,7]
[313241405,1707001838402,-166.666666,0.00022431,2]
[313241406,1707001838410,-151.0,0.00022875,2]
[313241407,1707001838420,-166.666666,0.00022944,2]
[313241408,1707001838429,-9959.98060866,0.00023,2]
[313241409,1707001838439,-1262.10938839,0.00023,2]
[313241410,1707001838448,-166.666666,0.00023456,2]
[313241411,1707001838457,-295.17761984,0.00023836,2]
[313241412,1707001838466,-166.666666,0.00023969,2]
[313241413,1707001838475,-151.0,0.00024034,2]
[313241414,1707001838484,-280.0,0.000243,7]
[313241415,1707001838497,-166.666666,0.00024482,2]
[313241416,1707001838506,-525.0,0.00024698,2]
[313241417,1707001838516,-151.30719918,0.00024698,2]
[313241418,1707001838525,-237.68865554,0.00024698,2]
[313241419,1707001838535,-387.72681881,0.00024736,2]
[313241420,1707001838544,-4734.00424096,0.00025,2]
[313241421,1707001838553,-534.69538579,0.00025,2]
[313241422,1707001838562,-1830.59711929,0.00025,2]
[313241423,1707001838575,-7139.33282423,0.00025,2]
[313241424,1707001838586,-155.02480421,0.00025,2]
[313241425,1707001838596,-18633.23632887,0.00025,2]
[313241426,1707001838607,-151.0,0.00025192,2]
[313241427,1707001838618,-167.797045,0.00025844,2]
[313241428,1707001838628,-1359.94915846,0.00025919,2]
[313241429,1707001838637,-295.17761984,0.00026054,2]
[313241430,1707001838648,-151.0,0.0002635,2]
[313241431,1707001838657,-838.93094668,0.000264,2]
[313241432,1707001838667,-18215.05216278,0.00026705,2]
[313241433,1707001838676,-5000.0,0.00026705,2]
[313241434,1707001838685,-88566.4828887,0.00026705,2]
[313241435,1707001838695,-3433.99863724,0.00026705,2]
[313241436,1707001838705,-32282.94884012,0.00026713,2]
[313241437,1707001838716,-5000.0,0.00026713,2]
[313241438,1707001838727,-391.0,0.0002673,15]
[313241439,1707001838737,-61803.0115902,0.00026998,2]
[313241440,1707001838748,-2915.86943201,0.00027,2]
[313241441,1707001838757,-18397.35820202,0.00027,2]
[313241460,1707001840875,-403.5335302,0.00026713,2]
[313241462,1707001840886,-1266.56600852,0.00026713,2]
[313241464,1707001840897,-7666.8278549,0.00026713,2]
[313241466,1707001840906,-11141.19941247,0.00027,2]
[313241498,1707001843078,-870.91158144,0.00027,2]
[313241499,1707001843089,-311.755237,0.0002726,2]
[313241500,1707001843099,-5535.53,0.00027387,3]
[313241501,1707001843110,-500.0,0.00027397,2]
[313241502,1707001843119,-500.0,0.00027397,2]
[313241503,1707001843130,-500.0,0.00027397,2]
[313241504,1707001843140,-500.0,0.00027397,2]
[313241505,1707001843150,-500.0,0.00027397,2]
[313241506,1707001843161,-453.46449264,0.00027397,2]
[313241507,1707001843171,-883.29,0.00027397,2]
[313241508,1707001843181,-500.0,0.00027397,2]
[313241509,1707001843190,-500.0,0.00027397,2]
[313241510,1707001843200,-500.0,0.00027397,2]
[313241511,1707001843210,-500.0,0.00027397,2]
[313241512,1707001843219,-500.0,0.00027397,2]
[313241513,1707001843228,-500.0,0.00027397,2]
[313241514,1707001843237,-575.05751018,0.00027397,2]
[313241515,1707001843246,-236.6,0.00027397,2]
[313241516,1707001843256,-1000.0,0.00027397,2]
[313241517,1707001843266,-500.0,0.00027397,2]
[313241518,1707001843275,-500.0,0.00027397,2]
[313241519,1707001843285,-500.0,0.00027397,2]
[313241520,1707001843294,-215.16301822,0.00027397,2]
[313241521,1707001843305,-2028.28,0.00027397,2]
[313241522,1707001843315,-500.0,0.00027397,2]
[313241523,1707001843324,-155.0,0.00027397,2]
[313241524,1707001843333,-574.52,0.00027397,2]
[313241525,1707001843343,-500.0,0.00027397,2]
[313241526,1707001843352,-2977.97,0.00027397,2]
[313241527,1707001843361,-500.0,0.00027397,2]
[313241528,1707001843370,-6283.54,0.00027397,2]
[313241529,1707001843379,-500.0,0.00027397,2]
[313241530,1707001843389,-6537.05,0.00027397,2]
[313241531,1707001843399,-500.0,0.00027397,2]
[313241532,1707001843411,-961.04,0.00027397,2]
[313241533,1707001843420,-585.89,0.00027397,2]
[313241534,1707001843430,-500.0,0.00027397,2]
[313241535,1707001843440,-9158.21,0.00027397,2]
[313241536,1707001843450,-421.254,0.00027397,2]
[313241537,1707001843461,-500.0,0.00027397,2]
[313241538,1707001843471,-297.7506862,0.00027397,2]
[313241539,1707001843482,-827.87,0.00027397,2]
[313241540,1707001843491,-1702.63,0.00027397,2]
[313241541,1707001843501,-4272.97,0.00027397,2]
[313241542,1707001843511,-500.0,0.00027397,2]
[313241543,1707001843520,-500.0,0.00027397,2]
[313241544,1707001843529,-1167.36,0.00027397,2]
[313241545,1707001843538,-500.0,0.00027397,2]
[313241546,1707001843548,-1000.0,0.00027494,7]
[313241547,1707001843558,-151.0,0.00027508,2]
[313241548,1707001843567,-500.0,0.0002767,2]
[313241549,1707001843576,-500.0,0.0002767,2]
[313241550,1707001843586,-313.85492238,0.0002767,2]
[313241551,1707001843595,-295.7480412,0.0002767,2]
[313241552,1707001843604,-402.41757269,0.0002767,2]
[313241553,1707001843615,-500.0,0.0002767,2]
[313241554,1707001843624,-168.14700003,0.0002767,2]
[313241555,1707001843633,-500.0,0.0002767,2]
[313241556,1707001843643,-572.54211599,0.0002767,2]
[313241557,1707001843652,-264.63972234,0.0002767,2]
[313241558,1707001843663,-500.0,0.00027671,2]
[313241559,1707001843673,-599.65,0.00027671,2]
[313241560,1707001843682,-430.54,0.00027671,2]
[313241561,1707001843691,-883.29,0.00027671,2]
[313241562,1707001843701,-377.05791211,0.00027671,2]
[313241563,1707001843710,-176.81,0.00027671,2]
[313241564,1707001843719,-1000.0,0.00027671,2]
[313241565,1707001843728,-500.0,0.00027671,2]
[313241566,1707001843738,-2028.28,0.00027671,2]
[313241567,1707001843747,-500.0,0.00027671,2]
[313241568,1707001843757,-574.52,0.00027671,2]
[313241569,1707001843766,-2977.97,0.00027671,2]
[313241570,1707001843775,-500.0,0.00027671,2]
[313241571,1707001843784,-6283.54,0.00027671,2]
[313241572,1707001843793,-504.10276315,0.00027671,2]
[313241573,1707001843808,-6032.94723685,0.00027671,2]
[313241574,1707001843817,-500.0,0.00027671,2]
[313241575,1707001843826,-961.04,0.00027671,2]
[313241576,1707001843835,-585.89,0.00027671,2]
[313241577,1707001843844,-9158.21,0.00027671,2]
[313241578,1707001843854,-827.87,0.00027671,2]
[313241579,1707001843863,-1702.63,0.00027671,2]
[313241580,1707001843872,-4272.97,0.00027671,2]
[313241581,1707001843881,-500.0,0.00027671,2]
[313241582,1707001843890,-1167.36,0.00027671,2]
[313241583,1707001843899,-500.0,0.00027671,2]
[313241584,1707001843907,-154.2824162,0.00027671,2]
[313241585,1707001843916,-306.0,0.00027671,2]
[313241586,1707001843925,-153.0,0.00027671,2]
[313241587,1707001844016,-306.0,0.00027671,2]
[313241588,1707001844026,-306.0,0.00027671,2]
[313241589,1707001844035,-153.0,0.00027671,2]
[313241590,1707001844043,-153.0,0.00027671,2]
[313241591,1707001844052,-153.0,0.00027671,2]
[313241592,1707001844061,-153.0,0.00027671,2]
[313241593,1707001844070,-153.0,0.00027671,2]
[313241594,1707001844079,-199.7424242,0.00027671,2]
[313241595,1707001844088,-325.9281118,0.00027671,2]
[313241596,1707001844097,-306.0,0.00027671,2]
[313241597,1707001844107,-153.0,0.00027671,2]
[313241598,1707001844116,-153.0,0.00027671,2]
[313241599,1707001844125,-199.7424242,0.00027671,2]
[313241600,1707001844133,-153.0,0.00027671,2]
[313241601,1707001844142,-153.0,0.00027671,2]
[313241602,1707001844151,-153.0,0.00027671,2]
[313241603,1707001844161,-153.0,0.00027671,2]
[313241604,1707001844170,-199.7424242,0.00027671,2]
[313241605,1707001844179,-153.0,0.00027671,2]
[313241606,1707001844188,-199.7424242,0.00027671,2]
[313241607,1707001844196,-199.7424242,0.00027671,2]
[313241608,1707001844205,-153.0,0.00027671,2]
[313241609,1707001844214,-156.6260754,0.00027671,2]
[313241610,1707001844223,-199.7424242,0.00027671,2]
[313241611,1707001844233,-199.7424242,0.00027671,2]
[313241612,1707001844242,-199.7424242,0.00027671,2]
[313241613,1707001844251,-199.7424242,0.00027671,2]
[313241614,1707001844260,-199.7424242,0.00027671,2]
[313241615,1707001844269,-228.1128032,0.00027671,2]
[313241616,1707001844278,-150.1,0.00027683,2]
[313241617,1707001844287,-630.94654733,0.0002772,2]
[313241618,1707001844296,-387.72681881,0.00027857,3]
[313241619,1707001844305,-883.29,0.00027945,2]
[313241620,1707001844314,-1000.0,0.00027945,2]
[313241621,1707001844325,-2028.28,0.00027945,2]
[313241622,1707001844335,-250.89513342,0.00027945,2]
[313241623,1707001844345,-574.52,0.00027945,2]
[313241624,1707001844354,-2977.97,0.00027945,2]
[313241625,1707001844365,-500.0,0.00027945,2]
[313241626,1707001844374,-6283.54,0.00027945,2]
[313241627,1707001844384,-2177.62127907,0.00027945,2]
[313241628,1707001844398,-4215.05987283,0.00027945,2]
[313241648,1707001874008,300.0,0.0002,2]
[313241655,1707002011266,1239.54598854,0.0002,2]
[313241877,1707003038051,-155.01085076,0.00023018,4]
[313241878,1707003038061,-1114.97615407,0.00023018,2]
[313241879,1707003038070,-847.04120095,0.00023019,2]
[313241893,1707003041071,-639.81631032,0.00023019,2]
[313241894,1707003041083,-9959.98060866,0.00023019,2]
[313241895,1707003041092,-720.8403274,0.00023022,2]
[313241896,1707003041102,-167.797045,0.00023299,2]
[313241897,1707003041111,-166.666666,0.00023311,2]
[313241898,1707003041121,-166.666666,0.00023946,2]
[313241899,1707003041130,-362.85043501,0.00024021,2]
[313241900,1707003041152,-1294.56762125,0.00024021,2]
[313241901,1707003041165,-4219.27995585,0.00024021,2]
[313241902,1707003041177,-996.28439946,0.00024021,2]
[313241908,1707003042966,-898.39954919,0.00024021,2]
[313241909,1707003043024,-334.25102148,0.00024021,2]
[313241910,1707003043037,-7493.96951586,0.00024021,2]
[313241911,1707003043047,-511.3385697,0.00024564,2]
[313241912,1707003043061,-1623.6353265,0.00024564,2]
[313241913,1707003043072,-11.6713442,0.00024564,2]
[313241914,1707003043083,-166.666666,0.00024582,2]
[313241915,1707003043092,-221.94658436,0.00024714,2]
[313241916,1707003043101,-2207.94765501,0.00025,2]
[313241985,1707004234661,-155.01085076,0.00021372,4]
[313241987,1707004234671,-723.6297115,0.00021373,2]
[313242289,1707004238296,-2276.3702885,0.00021373,2]
[313242291,1707004238306,-555.80595504,0.00021565,2]
[313242293,1707004238324,-1034.2333888,0.00021566,2]
[313242295,1707004238336,-199.59356808,0.00021708,2]
[313242297,1707004238345,-2820.01011613,0.00021708,2]
[313242299,1707004238355,-4941.80586518,0.00021709,2]
[313242329,1707004241319,-1429.55506106,0.00021709,2]
[313242332,1707004241331,-3373.45963539,0.00021709,2]
[313242334,1707004241343,-3151.48,0.00021709,2]
[313242521,1707004243124,-12003.69943837,0.00021709,2]
[313242524,1707004243134,-166.666666,0.00021918,2]
[313242526,1707004243143,-257.882379,0.0002193,2]
[313242528,1707004243152,-246.9763929,0.00021973,2]
[313242530,1707004243162,-166.666666,0.00022431,2]
[313242531,1707004243171,-1359.94915846,0.00022464,2]
[313242534,1707004243181,-166.666666,0.00022944,2]
[313242536,1707004243190,-167.246797,0.0002306,2]
[313242538,1707004243199,-166.666666,0.00023456,2]
[313242540,1707004243209,-166.666666,0.00023969,2]
[313242542,1707004243218,-1073.19926375,0.00023974,2]
[313242544,1707004243227,-166.666666,0.00024482,2]
[313242546,1707004243237,-480.08446335,0.00024714,2]
[313242549,1707004243246,-170.6988826,0.00024897,2]
[313242552,1707004243255,-500.0,0.00024987,2]
[313242555,1707004243265,-8395.02,0.00024987,2]
[313242558,1707004243274,-1601.86,0.00024987,2]
[313242560,1707004243283,-500.0,0.00024987,2]
[313242562,1707004243292,-7414.29,0.00024987,3]
[313242564,1707004243301,-6178.58,0.00024987,3]
[313242566,1707004243311,-8860.11,0.00024987,2]
[313242568,1707004243321,-5148.81,0.00024987,3]
[313242570,1707004243330,-500.0,0.00024989,2]
[313242572,1707004243340,-500.0,0.00024989,2]
[313242574,1707004243349,-500.0,0.00024989,2]
[313242576,1707004243358,-500.0,0.00024997,2]
[313242578,1707004243368,-502.71,0.00024997,2]
[313242580,1707004243378,-2605.72,0.00024997,2]
[313242582,1707004243387,-537.06,0.00024997,2]
[313242584,1707004243396,-5498.1,0.00024997,2]
[313242586,1707004243406,-4633.22248158,0.00024997,2]
[313242588,1707004243419,-1092.71751842,0.00024997,2]
[313242590,1707004243428,-500.0,0.00024997,2]
[313242592,1707004243438,-779.72,0.00024997,2]
[313242594,1707004243447,-202.0993564,0.00024998,2]
[313242597,1707004243464,-297.9006436,0.00024998,2]
[313242599,1707004243473,-500.0,0.00024998,2]
[313242601,1707004243482,-4019.36,0.00024998,2]
[313242603,1707004243493,-500.0,0.00024998,2]
[313242605,1707004243502,-500.0,0.00024998,2]
[313242607,1707004243512,-500.0,0.00024998,2]
[313242609,1707004243521,-1070.08,0.00024998,2]
[313242611,1707004243531,-573.60711125,0.00024998,2]
[313242614,1707004243543,-644.09531129,0.00024998,2]
[313242616,1707004243558,-557.04757746,0.00024998,2]
[313242618,1707004243567,-92.95242254,0.00024998,2]
[313242620,1707004243579,-270.1492761,0.00024998,2]
[313242901,1707004246218,-136.89830136,0.00024998,2]
[313242903,1707004246227,-880.95,0.00024998,2]
[313242905,1707004246236,-200.95048453,0.00024999,2]
[313242907,1707004246246,-1830.59711929,0.00025,2]
[313242909,1707004246255,-534.69538579,0.00025,2]
[313242911,1707004246264,-7139.33282423,0.00025,2]
[313242913,1707004246273,-13276.6855684,0.00025,7]
[313242916,1707004246285,-237556.93470574,0.00025,7]
[313242918,1707004246294,-4734.00424096,0.00025,2]
[313242920,1707004246303,-155.02480421,0.00025,2]
[313242921,1707004246313,-200.0,0.00025088,7]
[313242923,1707004246322,-265.65985791,0.00025172,2]
[313242926,1707004246332,-500.0,0.00025261,2]
[313242927,1707004246341,-1865.15117616,0.00025261,2]
[313243247,1707004618930,520.08063796,0.00024988,30]
[313243380,1707005432309,-155.01240099,0.00020901,4]
[313243381,1707005432319,-589.57572061,0.00020902,2]
[313243382,1707005432330,-257.882379,0.00020905,2]
[313243383,1707005432348,-1638.3538228,0.00021124,2]
[313243384,1707005432361,-346.14832182,0.00021172,2]
[313243385,1707005432372,-24900.0,0.00021256,2]
[313243386,1707005432382,-185.77194611,0.00021272,2]
[313243387,1707005432392,-169.850297,0.00021304,2]
[313243388,1707005432401,-166.666666,0.00021918,2]
[313243389,1707005432411,-166.666666,0.00022431,2]
[313243390,1707005432421,-261.63919067,0.00022701,2]
[313243391,1707005432431,-609.18883985,0.00022701,2]
[313243392,1707005432441,-790.76119493,0.00022702,5]
[313243393,1707005432452,-906.6327723,0.000229,2]
[313243394,1707005432462,-166.666666,0.00022944,2]
[313243395,1707005432472,-9959.98060866,0.00023,2]
[313243396,1707005432481,-1262.10938839,0.00023,2]
[313243397,1707005432491,-150.53,0.00023145,2]
[313243398,1707005432500,-200.0,0.0002338,7]
[313243399,1707005432510,-166.666666,0.00023456,2]
[313243400,1707005432519,-166.666666,0.00023969,2]
[313243401,1707005432529,-346.1483218,0.00024342,2]
[313243402,1707005432539,-166.666666,0.00024482,2]
[313243403,1707005432548,-175.22310392,0.00024557,2]
[313243404,1707005432558,-5756.52,0.00024647,3]
[313243405,1707005432567,-8490.94,0.00024657,2]
[313243406,1707005432578,-500.0,0.00024657,2]
[313243407,1707005432588,-500.0,0.00024657,2]
[313243408,1707005432598,-1025.5,0.00024657,2]
[313243409,1707005432607,-1700.8,0.00024657,2]
[313243410,1707005432616,-500.0,0.00024657,2]
[313243411,1707005432626,-550.1,0.00024657,2]
[313243412,1707005432636,-2497.15,0.00024657,2]
[313243413,1707005432645,-5269.01,0.00024657,2]
[313243414,1707005432655,-5487.36,0.00024657,2]
[313243415,1707005432666,-500.0,0.00024657,2]
[313243416,1707005432675,-500.0,0.00024657,2]
[313243417,1707005432685,-514.68,0.00024657,2]
[313243418,1707005432694,-7967.52,0.00024657,2]
[313243419,1707005432704,-747.23,0.00024657,2]
[313243420,1707005432713,-844.25,0.00024657,2]
[313243421,1707005432723,-1535.12,0.00024657,2]
[313243422,1707005432732,-856.07202049,0.00024657,2]
[313243438,1707005439216,-589.57572061,0.000209,2]
[313243439,1707005439226,-597.17086236,0.00020901,2]
[313243440,1707005439274,-757.21520774,0.00020901,2]
[313243446,1707005441529,-448.95280895,0.00020901,2]
[313243447,1707005441539,-175.721629,0.00021918,2]
[313243448,1707005441548,-175.721629,0.00022559,2]
[313243449,1707005441557,-175.721629,0.000232,2]
[313243450,1707005441567,-175.721629,0.00023841,2]
[313243451,1707005441576,-175.721629,0.00024482,2]
[313243452,1707005441588,-2995.80797951,0.00024657,2]
[313243453,1707005441598,-288.65985087,0.00024657,2]
[313243454,1707005441607,-500.0,0.00024657,2]
[313243455,1707005441617,-883.13681232,0.00024719,2]
[313243456,1707005441626,-1342.58491078,0.00024723,2]
[313243457,1707005441635,-8490.94,0.00024931,2]
[313243458,1707005441645,-500.0,0.00024931,2]
[313243459,1707005441654,-1025.5,0.00024931,2]
[313243460,1707005441664,-1700.8,0.00024931,2]
[313243461,1707005441674,-500.0,0.00024931,2]
[313243462,1707005441683,-2497.15,0.00024931,2]
[313243463,1707005441692,-5269.01,0.00024931,2]
[313243464,1707005441701,-5487.36,0.00024931,2]
[313243465,1707005441711,-189.5870128,0.00024931,2]
[313243466,1707005441720,-500.0,0.00024931,2]
[313243467,1707005441730,-514.68,0.00024931,2]
[313243468,1707005441739,-7967.52,0.00024931,2]
[313243469,1707005441748,-747.23,0.00024931,2]
[313243470,1707005441758,-844.25,0.00024931,2]
[313243471,1707005441767,-1535.12,0.00024931,2]
[313243472,1707005441776,-3851.88,0.00024931,2]
[313243473,1707005441786,-493.15078267,0.00024931,2]
[313243474,1707005441795,-3164.31522437,0.0002499,3]
[313243477,1707005443377,-972.01848822,0.0002499,3]
[313243478,1707005443436,-477.96859191,0.0002499,3]
[313243531,1707005446469,-940.04,0.00024657,2]
[313243533,1707005446479,-940.04,0.00024931,2]
[313243535,1707005446488,-182.7976955,0.0002499,3]
[313243537,1707005446497,-426.88835692,0.00024998,2]
[313243539,1707005446506,-806.93134753,0.00024999,2]
[313243669,1707006633746,-155.01240099,0.00020559,4]
[313243670,1707006633757,-239.40403848,0.0002056,2]
[313243671,1707006633802,-580.88630507,0.0002056,2]
[313243672,1707006633812,-1056.48613863,0.00020565,2]
[313243673,1707006633826,-1943.51386137,0.00020565,2]
[313243674,1707006633835,-499.92287044,0.00020687,2]
[313243706,1707006638639,-24900.0,0.00020522,2]
[313243708,1707006638649,-509.67302436,0.00020687,2]
[313243710,1707006638658,-1759.7957539,0.00020891,2]
[313243712,1707006638668,-1001.21616189,0.00021107,2]
[313243714,1707006638677,-8600.2869634,0.00021112,2]
[313243716,1707006638687,-129.26435203,0.00021351,2]
[313243792,1707006641681,-151.91792397,0.00021351,2]
[313243793,1707006641691,-166.6666682,0.00021918,2]
[313243794,1707006641700,-680.25587459,0.0002195,2]
[313243795,1707006641709,-443.80207433,0.0002195,2]
[313243796,1707006641718,-293.81151229,0.00022,4]
[313243797,1707006641728,-426.88835692,0.00022,2]
[313243798,1707006641737,-326.17134224,0.00022,2]
[313243799,1707006641746,-5088.71,0.00022179,3]
[313243800,1707006641755,-4240.59,0.00022179,3]
[313243801,1707006641765,-31485.78886574,0.00022189,2]
[313243857,1707006646618,-155.01240099,0.00022188,4]
[313243859,1707006646627,-161.40309746,0.00022189,2]
[313243865,1707006646675,-3808.64585,0.00022189,2]
[313244469,1707007216323,-1528.52101791,0.00043431,120]
[313244470,1707007216346,-2407.70433483,0.00043431,120]
[313244471,1707007216370,-500.0,0.00043431,120]
[313244472,1707007216393,-3577.78468695,0.00043431,120]
[313244473,1707007216417,-581.00196956,0.00043431,120]
[313244474,1707007216440,-643.43800413,0.00043431,120]
[313244475,1707007216463,-506.72843523,0.00043431,120]
[313244476,1707007216487,-1100.31601673,0.00043431,120]
[313244477,1707007216512,-1027.19790589,0.00043431,120]
[313244478,1707007216535,-314.16715046,0.00043431,120]
[313244479,1707007216557,-2444.99484352,0.00043431,120]
[313244480,1707007216580,-10391.614907,0.00043431,120]
[313244481,1707007216604,-11925.0,0.00043431,120]
[313244482,1707007216627,-2000.0,0.00043431,62]
[313244483,1707007216651,-2000.0,0.00043431,70]
[313244484,1707007216677,-3000.0,0.00043431,75]
[313244485,1707007216701,-3000.0,0.00043431,71]
[313244486,1707007216724,-3000.0,0.00043431,80]
[313244487,1707007216749,-1271.87370045,0.00043431,90]
[313244488,1707007216773,-9029.1667745,0.00043431,120]
[313244489,1707007216799,-150.40537957,0.00043431,120]
[313244490,1707007231120,-661.17936049,0.00043431,30]
[313244491,1707007231142,-1143.09324364,0.00043431,30]
[313244492,1707007231165,-151.07782847,0.00043431,30]
[313244493,1707007231187,-3016.96563942,0.00043431,30]
[313244494,1707007231208,-100000.0,0.00043431,30]
[313244495,1707007231230,-179255.4,0.00043431,30]
[313244496,1707007231253,-485427.93643897,0.00043431,30]